bitfinex/quotes_BTCUSD_20240727
["timestamp","ask_amount","ask_price","bid_price","bid_amount"]
[1722070119726,1.41651598,68092.0,68091.0,0.007924]
[1722070120168,1.51651598,68092.0,68091.0,0.000924]
[1722070120383,1.5384049,68092.0,68091.0,0.000924]
[1722070120631,1.4537049,68092.0,68091.0,0.001924]
[1722070120790,1.45084923,68092.0,68091.0,0.001924]
[1722070120991,1.36614923,68092.0,68091.0,0.001924]
[1722070121243,1.45084923,68092.0,68091.0,0.001924]
[1722070121443,1.07242923,68092.0,68091.0,0.001924]
[1722070121767,1.00772923,68092.0,68091.0,0.001924]
[1722070121977,1.07338611,68092.0,68091.0,0.001924]
[1722070122774,1.00772923,68092.0,68091.0,0.001924]
[1722070123204,1.30222619,68092.0,68091.0,0.001924]
[1722070123404,1.00850619,68092.0,68091.0,0.001924]
[1722070123627,1.09606295,68092.0,68091.0,0.001924]
[1722070124003,1.38978295,68092.0,68091.0,0.001924]
[1722070124223,1.09606295,68092.0,68091.0,0.001924]
[1722070124425,1.09608261,68092.0,68091.0,0.001924]
[1722070124631,1.38980261,68092.0,68091.0,0.001924]
[1722070124844,1.07303472,68092.0,68091.0,0.001924]
[1722070125045,1.36675472,68092.0,68091.0,0.001924]
[1722070125428,1.38864391,68092.0,68091.0,0.001924]
[1722070126072,1.09492391,68092.0,68091.0,0.001924]
[1722070126482,1.09502207,68092.0,68091.0,0.001924]
[1722070126655,1.38874207,68092.0,68091.0,0.001924]
[1722070127231,1.65444207,68092.0,68091.0,0.001924]
[1722070127470,1.54489796,68092.0,68091.0,0.001924]
[1722070128878,1.83861796,68092.0,68091.0,0.001924]
[1722070129273,1.54489796,68092.0,68091.0,0.000836]
[1722070129640,1.83861796,68092.0,68091.0,0.000836]
[1722070129850,1.54446823,68092.0,68091.0,0.000836]
[1722070130020,0.440664,68079.0,68078.0,0.0777]
[1722070131606,0.440664,68079.0,68078.0,0.0917]
[1722070131806,0.440664,68079.0,68078.0,0.1037]
[1722070135007,0.46371551,68079.0,68078.0,0.1037]
[1722070135833,0.46371551,68079.0,68078.0,0.08065]
[1722070136411,0.440664,68079.0,68078.0,0.08065]
[1722070137908,0.146888,68079.0,68078.0,0.08065]
[1722070138101,0.293764,68082.0,68078.0,0.08065]
[1722070138528,0.146888,68079.0,68078.0,0.08065]
[1722070139116,0.146888,68079.0,68078.0,0.06865]
[1722070139265,0.146888,68079.0,68078.0,0.05465]
[1722070139476,0.146888,68079.0,68078.0,0.06365]
[1722070139674,0.146888,68079.0,68078.0,0.07565]
[1722070139873,0.146888,68079.0,68078.0,0.05465]
[1722070140273,0.146888,68079.0,68078.0,0.06865]
[1722070140503,0.147888,68079.0,68078.0,0.06865]
[1722070141410,0.147888,68079.0,68078.0,0.08065]
[1722070142415,0.441664,68079.0,68078.0,0.08065]
[1722070146249,0.441664,68079.0,68078.0,0.026]
[1722070150658,0.73544,68079.0,68078.0,0.026]
[1722070151619,0.441664,68079.0,68078.0,0.026]
[1722070152068,0.73544,68079.0,68078.0,0.026]
[1722070152626,0.441664,68079.0,68078.0,0.026]
[1722070153929,0.73544,68079.0,68078.0,0.026]
[1722070154997,0.441664,68079.0,68078.0,0.026]
[1722070155159,0.73544,68079.0,68078.0,0.026]
[1722070155366,0.441664,68079.0,68078.0,0.026]
[1722070155593,0.73544,68079.0,68078.0,0.026]
[1722070156424,0.441664,68079.0,68078.0,0.026]
[1722070156803,0.73544,68079.0,68078.0,0.026]
[1722070158547,0.90004,68079.0,68078.0,0.026]
[1722070158770,1.22003417,68079.0,68078.0,0.026]
[1722070158888,1.53570084,68079.0,68078.0,0.026]
[1722070159315,1.42668514,68079.0,68078.0,0.014]
[1722070159521,1.53617729,68079.0,68078.0,0.021]
[1722070160510,1.82995329,68079.0,68078.0,0.021]
[1722070160679,1.42568514,68079.0,68078.0,0.007]
[1722070160825,1.356316,68079.0,68078.0,0.007]
[1722070161022,0.877915,68072.0,68071.0,0.000924]
[1722070161229,1.24146406,68072.0,68071.0,0.000924]
[1722070161440,1.24146327,68072.0,68071.0,0.000924]
[1722070162401,1.3071067,68072.0,68071.0,0.000924]
[1722070162831,1.24146327,68072.0,68071.0,0.000924]
[1722070163033,1.171721,68072.0,68071.0,0.000924]
[1722070163223,1.24170748,68072.0,68071.0,0.000924]
[1722070164310,1.32919925,68072.0,68071.0,0.000924]
[1722070164486,1.24170748,68072.0,68071.0,0.000924]
[1722070165449,1.32918434,68072.0,68071.0,0.000924]
[1722070166327,1.171721,68072.0,68071.0,0.000924]
[1722070166543,1.32931459,68072.0,68071.0,0.000924]
[1722070166745,1.24182971,68072.0,68071.0,0.000924]
[1722070166945,1.25083703,68072.0,68071.0,0.000924]
[1722070168207,1.02262234,68072.0,68071.0,0.000924]
[1722070168635,0.95703103,68072.0,68071.0,0.000924]
[1722070169616,0.88692232,68072.0,68071.0,0.000924]
[1722070169822,0.95679227,68072.0,68071.0,0.000924]
[1722070171173,1.25059827,68072.0,68071.0,0.000924]
[1722070171388,1.25071799,68072.0,68071.0,0.000924]
[1722070173098,1.25053043,68072.0,68071.0,0.000924]
[1722070179811,1.25041055,68072.0,68071.0,0.000924]
[1722070183121,1.20378327,68072.0,68071.0,0.000924]
[1722070183315,1.25026944,68072.0,68071.0,0.000924]
[1722070185506,1.79433501,68072.0,68071.0,0.000924]
[1722070186566,1.72479389,68072.0,68071.0,0.000924]
[1722070186738,1.79433146,68072.0,68071.0,0.000924]
[1722070186936,1.80133146,68072.0,68071.0,0.001924]
[1722070187585,1.75299671,68072.0,68071.0,0.002924]
[1722070187775,1.74599671,68072.0,68071.0,0.001924]
[1722070187986,1.80299671,68072.0,68071.0,0.002924]
[1722070188410,1.79599671,68072.0,68071.0,0.001924]
[1722070188723,1.79599671,68072.0,68071.0,0.000924]
[1722070189547,1.84009821,68072.0,68071.0,0.001924]
[1722070189718,1.6495919,68072.0,68071.0,0.001924]
[1722070189930,1.70919441,68072.0,68071.0,0.002924]
[1722070190364,1.79389441,68072.0,68071.0,0.002924]
[1722070190566,1.90307575,68072.0,68071.0,0.002924]
[1722070190778,1.79389441,68072.0,68071.0,0.002924]
[1722070191560,1.70919441,68072.0,68071.0,0.002924]
[1722070191744,0.92818241,68072.0,68071.0,0.07805379]
[1722070191933,0.99369635,68072.0,68071.0,0.002924]
[1722070192072,0.92818241,68072.0,68071.0,0.002924]
[1722070192254,1.22198841,68072.0,68071.0,0.002924]
[1722070193088,1.33239465,68072.0,68071.0,0.002924]
[1722070193296,1.62430806,68072.0,68071.0,0.002924]
[1722070193490,1.5369594,68072.0,68071.0,0.002924]
[1722070193775,1.47414599,68072.0,68071.0,0.002924]
[1722070193952,1.32764599,68072.0,68071.0,0.002924]
[1722070194155,1.32764599,68072.0,68071.0,0.000924]
[1722070194156,1.22904599,68072.0,68071.0,0.000924]
[1722070194562,1.02377599,68072.0,68071.0,0.002924]
[1722070194931,1.00071841,68072.0,68071.0,0.002924]
[1722070195323,1.00071841,68072.0,68071.0,0.00412612]
[1722070195546,0.93518241,68072.0,68071.0,0.00412612]
[1722070196468,0.93518241,68072.0,68071.0,0.002924]
[1722070196782,0.93518241,68072.0,68071.0,0.00361455]
[1722070196970,0.93518241,68072.0,68071.0,0.002924]
[1722070197359,0.93518241,68072.0,68071.0,0.00374183]
[1722070197561,0.93518241,68072.0,68071.0,0.002924]
[1722070197763,0.93518241,68072.0,68071.0,0.0036804]
[1722070197969,0.09166009,68072.0,68071.0,0.002924]
[1722070198351,0.023,68072.0,68071.0,0.00375947]
[1722070198898,0.023,68072.0,68071.0,0.06915947]
[1722070199096,0.023,68072.0,68071.0,0.14585947]
[1722070199536,0.023,68072.0,68071.0,0.58657447]
[1722070199736,0.023,68072.0,68071.0,0.29276447]
[1722070199941,0.01,68072.0,68071.0,0.29176447]
[1722070200141,0.146895,68076.0,68071.0,0.29076447]
[1722070200298,0.01,68072.0,68071.0,0.14485947]
[1722070200498,0.019,68072.0,68071.0,0.14585947]
[1722070200700,0.019,68072.0,68071.0,0.58657447]
[1722070201106,0.1,68075.0,68073.0,0.00142569]
[1722070201307,0.06558709,68078.0,68073.0,0.00142569]
[1722070201308,0.023,68076.0,68073.0,0.00142569]
[1722070201535,0.440695,68074.0,68073.0,0.00142569]
[1722070201849,0.146901,68073.0,68072.0,0.00142569]
[1722070202152,0.80415509,68073.0,68072.0,0.00142569]
[1722070202305,0.86976205,68073.0,68072.0,0.00142569]
[1722070202507,0.80415509,68073.0,68072.0,0.00142569]
[1722070202708,0.734515,68072.0,68071.0,0.000924]
[1722070202937,0.57597506,68072.0,68071.0,0.00179141]
[1722070203110,0.57597506,68072.0,68071.0,0.00279141]
[1722070203309,0.52835909,68072.0,68071.0,0.00379141]
[1722070203510,0.52835909,68072.0,68071.0,0.00279141]
[1722070203937,0.61583504,68072.0,68071.0,0.00279141]
[1722070204141,0.60583504,68072.0,68071.0,0.001924]
[1722070204503,0.51835909,68072.0,68071.0,0.0027302]
[1722070204701,0.51835909,68072.0,68071.0,0.002924]
[1722070204922,0.52835909,68072.0,68071.0,0.00378277]
[1722070205162,0.84522165,68072.0,68071.0,0.00378277]
[1722070205365,0.8451564,68072.0,68071.0,0.00378277]
[1722070205966,0.8451564,68072.0,68071.0,0.002924]
[1722070206210,0.82209984,68072.0,68071.0,0.002924]
[1722070207347,1.17740584,68072.0,68071.0,0.002924]
[1722070207594,1.28678963,68072.0,68071.0,0.002924]
[1722070207789,1.36738963,68072.0,68071.0,0.002924]
[1722070208735,1.29780479,68072.0,68071.0,0.002924]
[1722070208919,1.36676005,68072.0,68071.0,0.002924]
[1722070209494,1.38981695,68072.0,68071.0,0.002924]
[1722070209699,1.36676005,68072.0,68071.0,0.002924]
[1722070212089,1.26623399,68072.0,68071.0,0.002924]
[1722070212304,1.37589529,68072.0,68071.0,0.00434969]
[1722070212662,1.37589529,68072.0,68071.0,0.002924]
[1722070212663,1.37589498,68072.0,68071.0,0.002924]
[1722070213084,1.39895171,68072.0,68071.0,0.002924]
[1722070213490,1.37589498,68072.0,68071.0,0.002924]
[1722070213851,1.37582958,68072.0,68071.0,0.002924]
[1722070214076,1.26642381,68072.0,68071.0,0.002924]
[1722070214966,1.36642381,68072.0,68071.0,0.002924]
[1722070215360,1.36578802,68072.0,68071.0,0.002924]
[1722070215563,1.36515223,68072.0,68071.0,0.002924]
[1722070215917,1.36571491,68072.0,68071.0,0.002924]
[1722070216697,1.29534382,68072.0,68071.0,0.002924]
[1722070217347,0.92093782,68072.0,68071.0,0.002924]
[1722070217522,0.62713182,68072.0,68071.0,0.063024]
[1722070217742,0.71465945,68072.0,68071.0,0.063024]
[1722070217949,1.00964113,68072.0,68071.0,0.06444969]
[1722070218184,0.71583513,68072.0,68071.0,0.06444969]
[1722070218386,0.28668843,68072.0,68071.0,0.06444969]
[1722070218587,0.14105701,68072.0,68071.0,0.06444969]
[1722070220656,0.04105701,68072.0,68071.0,0.58146469]
[1722070221263,0.04105701,68072.0,68071.0,0.95470469]
[1722070221465,0.04105701,68072.0,68071.0,0.953279]
[1722070221856,0.04105701,68072.0,68071.0,0.95470469]
[1722070222055,0.03305701,68072.0,68071.0,1.24751469]
[1722070222261,0.01,68072.0,68071.0,1.24751469]
[1722070222460,0.011,68072.0,68071.0,0.96370469]
[1722070223090,0.001,68072.0,68071.0,0.96270469]
[1722070223391,0.001,68072.0,68071.0,1.25651469]
[1722070223699,0.001,68072.0,68071.0,0.96270469]
[1722070223939,0.001,68072.0,68071.0,1.25651469]
[1722070224129,0.002,68072.0,68071.0,1.268089]
[1722070224334,0.002,68072.0,68071.0,1.26915127]
[1722070225312,0.002,68072.0,68071.0,1.268089]
[1722070225727,0.002,68072.0,68071.0,1.26896332]
[1722070226132,0.002,68072.0,68071.0,1.268089]
[1722070226355,0.00284,68072.0,68071.0,1.26945867]
[1722070226612,0.00284,68072.0,68071.0,0.97564867]
[1722070226934,0.00284,68072.0,68071.0,1.26945867]
[1722070227338,0.00284,68072.0,68071.0,1.268089]
[1722070227761,0.00284,68072.0,68071.0,1.26885736]
[1722070228166,0.00284,68072.0,68071.0,1.51885736]
[1722070228565,0.00284,68072.0,68071.0,1.518089]
[1722070229049,0.00284,68072.0,68071.0,1.520089]
[1722070229245,0.00284,68072.0,68071.0,1.52085629]
[1722070229457,0.00284,68072.0,68071.0,1.520089]
[1722070229658,0.00284,68072.0,68071.0,1.52151469]
[1722070229877,0.02589299,68072.0,68071.0,1.52151469]
[1722070230169,0.00284,68072.0,68071.0,1.54451469]
[1722070230392,0.00284,68072.0,68071.0,1.83832469]
[1722070230818,0.00284,68072.0,68071.0,1.836899]
[1722070231021,0.00284,68072.0,68071.0,1.543089]
[1722070232018,0.00284,68072.0,68071.0,1.54421181]
[1722070232705,0.00284,68072.0,68071.0,1.543089]
[1722070232896,0.02589281,68072.0,68071.0,1.543089]
[1722070233113,0.02589281,68072.0,68071.0,1.541089]
[1722070233312,0.02589281,68072.0,68071.0,1.3037319]
[1722070233511,0.02589281,68072.0,68071.0,1.302789]
[1722070233711,0.02589281,68072.0,68071.0,1.30360727]
[1722070234042,0.02589281,68072.0,68071.0,1.302789]
[1722070236008,0.00284,68072.0,68071.0,1.302789]
[1722070236411,0.00284,68072.0,68071.0,0.715169]
[1722070236761,0.00284,68072.0,68071.0,0.630469]
[1722070237156,0.00284,68072.0,68071.0,0.715169]
[1722070238883,0.510149,68072.0,68071.0,0.023924]
[1722070239025,0.23939743,68072.0,68071.0,0.023924]
[1722070239231,0.216343,68072.0,68071.0,0.023924]
[1722070239631,0.06944,68072.0,68071.0,0.023924]
[1722070239829,0.216343,68072.0,68071.0,0.023924]
[1722070240198,0.06944,68072.0,68071.0,0.023924]
[1722070240311,0.149743,68072.0,68071.0,0.02507772]
[1722070240715,0.149743,68072.0,68071.0,0.023924]
[1722070241306,0.149743,68072.0,68071.0,0.02506816]
[1722070241508,0.00284,68072.0,68071.0,0.023924]
[1722070241724,0.00284,68072.0,68071.0,0.39844425]
[1722070242314,0.00284,68072.0,68071.0,0.397629]
[1722070242542,0.00284,68072.0,68071.0,0.3987049]
[1722070242750,0.02589544,68072.0,68071.0,0.2517999]
[1722070242970,0.02589544,68072.0,68071.0,0.3987049]
[1722070243118,0.02589544,68072.0,68071.0,0.7219449]
[1722070243320,0.02589544,68072.0,68071.0,1.014679]
[1722070243528,0.00284,68072.0,68071.0,1.014679]
[1722070244329,0.00284,68072.0,68071.0,1.0157586]
[1722070244534,0.00284,68072.0,68071.0,1.014679]
[1722070244731,0.00284,68072.0,68071.0,1.01573261]
[1722070245249,0.00284,68072.0,68071.0,1.014679]
[1722070246609,0.00284,68072.0,68071.0,1.01553301]
[1722070247007,0.00284,68072.0,68071.0,1.014679]
[1722070247254,0.00284,68072.0,68071.0,1.01610469]
[1722070247427,0.00284,68072.0,68071.0,1.014679]
[1722070247642,0.00284,68072.0,68071.0,1.358489]
[1722070247849,0.00284,68072.0,68071.0,1.308489]
[1722070248060,0.02589442,68072.0,68071.0,1.308489]
[1722070248453,0.00284,68072.0,68071.0,1.308489]
[1722070250468,0.00284,68072.0,68071.0,1.358489]
[1722070250655,0.02589429,68072.0,68071.0,1.358489]
[1722070250882,0.02589429,68072.0,68071.0,1.608489]
[1722070251060,0.02589429,68072.0,68071.0,1.610489]
[1722070251394,0.00284,68072.0,68071.0,1.610489]
[1722070251762,0.00284,68072.0,68071.0,1.608489]
[1722070254752,0.02589341,68072.0,68071.0,1.608489]
[1722070256020,0.00284,68072.0,68071.0,1.608489]
[1722070257204,0.00284,68072.0,68071.0,1.358489]
[1722070258262,0.00284,68072.0,68071.0,1.216389]
[1722070258594,0.00284,68072.0,68071.0,0.578769]
[1722070259420,0.00284,68072.0,68071.0,0.872579]
[1722070259622,0.00284,68072.0,68071.0,0.578769]
[1722070260517,0.00284,68072.0,68071.0,0.872579]
[1722070260737,0.0258943,68072.0,68071.0,0.578769]
[1722070261112,0.00284,68072.0,68071.0,0.578769]
[1722070261855,0.00284,68072.0,68071.0,0.138054]
[1722070262605,0.07904,68072.0,68071.0,0.053354]
[1722070262758,0.10209449,68072.0,68071.0,0.0543963]
[1722070262959,0.24899749,68072.0,68071.0,0.0249663]
[1722070263164,0.31449749,68072.0,68071.0,0.023924]
[1722070264030,0.31449749,68072.0,68071.0,0.02501835]
[1722070264443,0.31449749,68072.0,68071.0,0.023924]
[1722070264649,0.31449749,68072.0,68071.0,0.02534969]
[1722070265912,0.31449749,68072.0,68071.0,0.023924]
[1722070266805,0.10209449,68072.0,68071.0,0.170829]
[1722070267125,0.02589449,68072.0,68071.0,0.17208354]
[1722070267307,0.02589449,68072.0,68071.0,0.49534354]
[1722070267875,0.00284,68072.0,68071.0,0.49534354]
[1722070268060,0.00284,68072.0,68071.0,0.494089]
[1722070270319,0.00284,68072.0,68071.0,0.787899]
[1722070271101,0.00284,68072.0,68071.0,0.789003]
[1722070271302,0.00284,68072.0,68071.0,0.787899]
[1722070271508,0.00284,68072.0,68071.0,0.7887719]
[1722070271728,0.00284,68072.0,68071.0,0.787899]
[1722070272895,0.00284,68072.0,68071.0,0.78878862]
[1722070273224,0.00284,68072.0,68071.0,0.49497862]
[1722070273784,0.00284,68072.0,68071.0,1.13259862]
[1722070273974,0.00284,68072.0,68071.0,1.21399862]
[1722070274355,0.00284,68072.0,68071.0,1.213109]
[1722070274995,0.00284,68072.0,68071.0,1.21399489]
[1722070275195,0.00284,68072.0,68071.0,1.213109]
[1722070275646,0.02589427,68072.0,68071.0,1.526009]
[1722070276477,0.00284,68072.0,68071.0,1.526009]
[1722070276765,0.00284,68072.0,68071.0,1.276009]
[1722070277383,0.00284,68072.0,68071.0,1.526009]
[1722070280052,0.0258936,68072.0,68071.0,1.526009]
[1722070280907,0.0258936,68072.0,68071.0,1.64116156]
[1722070281523,0.0258936,68072.0,68071.0,1.549009]
[1722070281731,0.0258936,68072.0,68071.0,1.66421937]
[1722070282344,0.0258936,68072.0,68071.0,1.66621937]
[1722070282559,0.0258936,68072.0,68071.0,1.66623543]
[1722070283846,0.0239845,68072.0,68071.0,1.66623543]
[1722070284814,0.0009309,68072.0,68071.0,1.66623543]
[1722070285011,0.0009309,68072.0,68071.0,1.66423543]
[1722070285998,0.0009309,68072.0,68071.0,1.66453884]
[1722070287574,0.0009309,68072.0,68071.0,1.41453884]
[1722070287975,0.0009309,68072.0,68071.0,1.66453884]
[1722070288318,0.02398437,68072.0,68071.0,1.549009]
[1722070288754,0.02398437,68072.0,68071.0,1.66495327]
[1722070288936,0.02398437,68072.0,68071.0,1.549009]
[1722070289138,0.02398437,68072.0,68071.0,1.299009]
[1722070289339,0.0009309,68072.0,68071.0,1.549009]
[1722070289555,0.0009309,68072.0,68071.0,1.66498224]
[1722070289767,0.0009309,68072.0,68071.0,1.41498224]
[1722070289898,0.0009309,68072.0,68071.0,1.299009]
[1722070290102,0.0009309,68072.0,68071.0,1.41498179]
[1722070290307,0.0009309,68072.0,68071.0,1.66498179]
[1722070290504,0.0009309,68072.0,68071.0,1.549009]
[1722070292823,0.0009309,68072.0,68071.0,1.299009]
[1722070293395,0.0009309,68072.0,68071.0,1.549009]
[1722070293617,0.0009309,68072.0,68071.0,1.299009]
[1722070293803,0.0009309,68072.0,68071.0,1.66512423]
[1722070293993,0.0009309,68072.0,68071.0,1.549009]
[1722070294193,0.0009309,68072.0,68071.0,1.66512333]
[1722070296211,0.0009309,68072.0,68071.0,1.551009]
[1722070296409,0.0009309,68072.0,68071.0,1.66707695]
[1722070296849,0.0009309,68072.0,68071.0,1.96088695]
[1722070297059,0.02398428,68072.0,68071.0,1.96088695]
[1722070297232,0.0009309,68072.0,68071.0,1.96088695]
[1722070299677,0.0009309,68072.0,68071.0,1.844819]
[1722070299910,0.0009309,68072.0,68071.0,1.96061862]
[1722070300461,0.0239842,68072.0,68071.0,1.96061862]
[1722070303107,0.0239842,68072.0,68071.0,1.96030526]
[1722070305256,0.0009309,68072.0,68071.0,1.96030526]
[1722070306566,0.0009309,68072.0,68071.0,1.9605388]
[1722070307735,0.0009309,68072.0,68071.0,1.9585388]
[1722070308174,0.0009309,68072.0,68071.0,1.2704288]
[1722070308410,0.0239842,68072.0,68071.0,1.2704288]
[1722070309184,0.0009309,68072.0,68071.0,1.2704288]
[1722070309595,0.1397309,68072.0,68071.0,0.9883188]
[1722070309762,0.1397309,68072.0,68071.0,0.872599]
[1722070309987,0.1397309,68072.0,68071.0,0.98884315]
[1722070312045,0.1397309,68072.0,68071.0,0.69503315]
[1722070312254,0.16278509,68072.0,68071.0,0.98884315]
[1722070313412,0.16278509,68072.0,68071.0,0.98891514]
[1722070313738,0.1397309,68072.0,68071.0,0.98891514]
[1722070316637,0.1397309,68072.0,68071.0,0.98963849]
[1722070317440,0.1397309,68072.0,68071.0,0.872599]
[1722070318059,0.1397309,68072.0,68071.0,0.98961187]
[1722070318475,0.1397309,68072.0,68071.0,0.872599]
[1722070320899,0.0009309,68072.0,68071.0,0.872599]
[1722070321101,0.02398538,68072.0,68071.0,0.872599]
[1722070321504,0.0009309,68072.0,68071.0,0.872599]
[1722070324797,0.02398525,68072.0,68071.0,0.872599]
[1722070338409,0.02398525,68072.0,68071.0,1.166409]
[1722070338754,0.02398525,68072.0,68071.0,1.34508245]
[1722070339821,0.02398525,68072.0,68071.0,1.276909]
[1722070340137,0.02398525,68072.0,68071.0,1.39484471]
[1722070341758,0.02398525,68072.0,68071.0,1.276909]
[1722070341977,0.02398525,68072.0,68071.0,1.39484801]
[1722070344874,0.02398525,68072.0,68071.0,1.64484801]
[1722070345781,0.02398525,68072.0,68071.0,2.04385801]
[1722070346767,0.02398525,68072.0,68071.0,2.04323035]
[1722070347647,0.0009309,68072.0,68071.0,2.19348992]
[1722070349329,0.02388526,68079.0,68071.0,2.19348992]
[1722070349330,0.02388526,68079.0,68078.0,0.302]
[1722070349534,0.02388526,68079.0,68078.0,2.17213092]
[1722070349535,0.00084,68079.0,68078.0,2.17213092]
[1722070349740,0.00084,68093.0,68092.0,1.05747]
[1722070350007,0.00084,68093.0,68092.0,1.19217]
[1722070351102,0.00084,68093.0,68092.0,1.73589]
[1722070351538,0.00084,68093.0,68092.0,1.76189]
[1722070351539,0.00284,68093.0,68092.0,1.76189]
[1722070352028,0.00284,68093.0,68092.0,1.65529]
[1722070352187,0.00284,68093.0,68092.0,1.90529]
[1722070352397,0.00284,68093.0,68092.0,1.27687]
[1722070352577,0.00284,68093.0,68092.0,1.36157]
[1722070352793,0.00284,68093.0,68092.0,1.61157]
[1722070353623,0.00284,68093.0,68092.0,1.36157]
[1722070354027,0.00284,68093.0,68092.0,1.61157]
[1722070354399,0.00284,68093.0,68092.0,1.53137]
[1722070354821,0.00284,68093.0,68092.0,1.28137]
[1722070355026,0.00284,68093.0,68092.0,1.21817]
[1722070355388,0.00284,68093.0,68092.0,0.83975]
[1722070355518,0.02588754,68093.0,68092.0,0.83975]
[1722070356112,0.00284,68093.0,68092.0,0.026]
[1722070356307,0.14664,68093.0,68092.0,0.026]
[1722070358324,0.587212,68093.0,68092.0,0.026]
[1722070358520,0.880927,68093.0,68092.0,0.026]
[1722070358744,0.587212,68093.0,68092.0,0.026]
[1722070359021,0.293497,68093.0,68092.0,0.026]
[1722070359406,0.31654609,68093.0,68092.0,0.026]
[1722070359603,0.293497,68093.0,68092.0,0.026]
[1722070360432,0.292497,68093.0,68092.0,0.014]
[1722070360633,0.291497,68093.0,68089.0,0.146866]
[1722070360829,0.291497,68093.0,68092.0,0.004]
[1722070361050,0.291497,68093.0,68092.0,0.01]
[1722070361433,0.291497,68093.0,68092.0,0.006]
[1722070363206,0.16768955,68093.0,68092.0,0.006]
[1722070363414,0.16768955,68093.0,68092.0,0.01]
[1722070364212,0.31454655,68093.0,68092.0,0.01]
[1722070364926,0.291497,68093.0,68092.0,0.01]
[1722070366304,0.14464,68093.0,68092.0,0.01]
[1722070366573,0.291497,68093.0,68092.0,0.01]
[1722070367755,0.14464,68093.0,68092.0,0.01]
[1722070367970,0.291497,68093.0,68092.0,0.01]
[1722070368295,0.16768941,68093.0,68092.0,0.01]
[1722070368655,0.31454641,68093.0,68092.0,0.01]
[1722070369089,0.291497,68093.0,68092.0,0.01]
[1722070369471,0.585212,68093.0,68092.0,0.01]
[1722070372265,0.878927,68093.0,68092.0,0.01]
[1722070372469,0.90197644,68093.0,68092.0,0.01]
[1722070373145,1.28039144,68093.0,68092.0,0.01]
[1722070373495,1.257342,68093.0,68092.0,0.01]
[1722070373691,1.257342,68093.0,68092.0,0.006]
[1722070373936,0.146884,68081.0,68076.0,0.146894]
[1722070374091,0.1448,68080.0,68077.0,0.146892]
[1722070375283,0.1448,68080.0,68077.0,0.176342]
[1722070375410,0.1448,68080.0,68079.0,0.02945]
[1722070375613,0.0635,68083.0,68078.0,0.0847]
[1722070375821,0.0635,68083.0,68081.0,0.0847]
[1722070376773,0.08655127,68083.0,68082.0,0.02945]
[1722070377076,0.23343027,68083.0,68082.0,0.02945]
[1722070377414,0.08655127,68083.0,68082.0,0.02945]
[1722070377582,0.210379,68083.0,68082.0,0.02945]
[1722070378006,0.0635,68083.0,68082.0,0.02945]
[1722070378328,0.0635,68083.0,68082.0,0.04045]
[1722070378750,0.0635,68083.0,68082.0,0.011]
[1722070378751,0.210379,68083.0,68082.0,0.011]
[1722070379759,0.210379,68083.0,68082.0,0.019]
[1722070380757,0.0635,68083.0,68082.0,0.019]
[1722070380969,0.08655071,68083.0,68082.0,0.019]
[1722070381552,0.0635,68083.0,68082.0,0.019]
[1722070384440,0.0635,68083.0,68082.0,0.165881]
[1722070384669,0.226966,68089.0,68085.0,0.146873]
[1722070384867,0.146868,68088.0,68085.0,0.146873]
[1722070385186,0.0801,68089.0,68085.0,0.146873]
[1722070385406,0.146869,68088.0,68084.0,0.231577]
[1722070385814,0.00084,68093.0,68082.0,0.11215]
[1722070386017,0.14686,68092.0,68088.0,0.146868]
[1722070386220,0.02305076,68091.0,68088.0,0.146868]
[1722070386631,0.14686,68092.0,68088.0,0.146868]
[1722070386845,0.147698,68093.0,68089.0,0.146865]
[1722070387239,0.001,68092.0,68089.0,0.146865]
[1722070387958,0.147698,68093.0,68089.0,0.146865]
[1722070389662,0.148698,68093.0,68089.0,0.146865]
[1722070390247,0.149698,68093.0,68089.0,0.146865]
[1722070390874,0.00284,68093.0,68090.0,0.146863]
[1722070391083,0.149698,68093.0,68090.0,0.0637]
[1722070391565,0.149698,68093.0,68089.0,0.146866]
[1722070392661,0.148698,68093.0,68089.0,0.146866]
[1722070392864,0.148698,68093.0,68090.0,0.146863]
[1722070393063,0.17174756,68093.0,68090.0,0.146863]
[1722070393268,0.17274756,68093.0,68090.0,0.146863]
[1722070393401,0.17274756,68093.0,68089.0,0.146866]
[1722070393606,0.17074756,68093.0,68089.0,0.146866]
[1722070393830,0.17174756,68093.0,68089.0,0.146866]
[1722070394227,0.148698,68093.0,68089.0,0.146866]
[1722070394447,0.149698,68093.0,68089.0,0.146866]
[1722070395857,0.00284,68093.0,68092.0,0.44058]
[1722070396492,0.00284,68093.0,68092.0,0.58148]
[1722070396800,0.00084,68093.0,68092.0,0.8752]
[1722070397203,0.00284,68093.0,68092.0,0.8752]
[1722070397408,0.02488859,68093.0,68092.0,0.8752]
[1722070397836,0.02488859,68093.0,68092.0,0.8822]
[1722070397837,0.00084,68093.0,68092.0,0.8822]
[1722070399381,0.00084,68093.0,68092.0,0.8872]
[1722070400041,0.00084,68093.0,68092.0,0.81]
[1722070400327,0.21548687,68100.0,68096.0,0.14685]
[1722070400551,0.21548687,68100.0,68097.0,0.00095512]
[1722070400753,0.21548687,68100.0,68096.0,0.14685]
[1722070400959,0.23853521,68100.0,68097.0,0.00142569]
[1722070401103,0.21548687,68100.0,68097.0,0.00142569]
[1722070401307,0.28121903,68100.0,68097.0,0.00142569]
[1722070401726,0.21548687,68100.0,68097.0,0.00142569]
[1722070402182,0.21548687,68100.0,68096.0,0.14685]
[1722070402387,0.28124798,68100.0,68097.0,0.00122926]
[1722070402583,0.28124798,68100.0,68096.0,0.14685]
[1722070402784,0.28224798,68100.0,68097.0,0.00142569]
[1722070403188,0.28124798,68100.0,68097.0,0.00142569]
[1722070403345,0.21648687,68100.0,68097.0,0.00142569]
[1722070403540,0.28225524,68100.0,68096.0,0.14685]
[1722070403759,0.28225524,68100.0,68097.0,0.00142569]
[1722070404429,0.30630381,68100.0,68097.0,0.00142569]
[1722070405037,0.28325524,68100.0,68097.0,0.00142569]
[1722070406123,0.146846,68099.0,68097.0,0.00142569]